Cogmind - Beta 15 @@@ ROGUE MODE // 2025.09.07 @ 01:45:42 Player: LYMPH NODE JONES Result: Destroyed by B-75 Beast with Heavy Plasma Cannon Performance ------------- Evolutions (4) 2000 Regions Visited (7) 1400 Robots Destroyed (32) 160 Value Destroyed (1099) 1099 Prototype IDs (24) 480 Alien Tech Used (0) 0 Bonus (300) 300 TOTAL SCORE: 5439 Bonus ------- Aligned with FarCom 300 Cogmind --------- Core Integrity 0/850 Matter 297/300 Energy 100/100 System Corruption 1% Temperature Cool (21) Movement Core (50) Location -6/Factory Parts ------- > --- POWER (1) -------- (None) > --- PROPULSION (5) --- (None) > --- UTILITY (5) ------ Gravity Neutralizer Improved Terrain Scan Processor > --- WEAPON (4) ------- (None) > --- INVENTORY (5) ---- Energy Filter Improved Recalibrator Improved Field Recycling Unit (26) Peak State ------------ > --- POWER ------------ Light Nuclear Core > --- PROPULSION ------- Advanced Treads Improved Hover Unit > --- UTILITY ---------- Improved Heat Sink Improved Heat Sink Improved Terrain Scan Processor Energy Filter Improved Particle Charger > --- WEAPON ----------- Particle Gun EM Pulse Cannon Ion Cannon Gauss Rifle > --- INVENTORY -------- Improved Recalibrator Improved Field Recycling Unit [Rating: 39] Favorites ----------- Power Ion Engine Engine Ion Engine Power Core Nuclear Core Propulsion Aluminum Leg Treads Advanced Treads Leg Aluminum Leg Hover Unit Improved Hover Unit Utility Targeting Computer Device Heat Sink Storage Small Matter Pod Processor Targeting Computer Protection Light Armor Plating Weapon Grenade Launcher Energy Gun Particle Gun Energy Cannon Beam Cannon Ballistic Gun Assault Rifle Ballistic Cannon Flak Cannon Launcher Grenade Launcher Special Weapon Field Lobotomy Kit Build | -11 -10 -10 -10 -9 -8 -7 -6 ------- Run | Yrd Mat Min Exi Min Mat Fac Fac Slots Evolved 8 | . . . . . 4 2 2 Power . | . . . . . . . . Propulsion 3 | . . . . . 1 . 2 Utility 3 | . . . . . 1 2 . Weapon 2 | . . . . . 2 . . Parts Attached 51 | 5 13 3 . . 5 18 7 Power 8 | 1 3 1 . . . 3 . Engine 6 | 1 3 1 . . . 1 . Core 2 | . . . . . . 2 . Reactor . | . . . . . . . . Propulsion 10 | 2 3 . . . 2 2 1 Treads 1 | . . . . . . . 1 Leg 8 | 2 3 . . . 2 1 . Wheel . | . . . . . . . . Hover 1 | . . . . . . 1 . Flight . | . . . . . . . . Utility 15 | . 5 . . . 1 6 3 Device 9 | . 2 . . . . 5 2 Storage 1 | . . . . . . . 1 Processor 2 | . 1 . . . . 1 . Hackware . | . . . . . . . . Protection 3 | . 2 . . . 1 . . Artifact . | . . . . . . . . Weapon 18 | 2 2 2 . . 2 7 3 Energy Gun 3 | 1 1 . . . . 1 . Energy Cannon 3 | . . 1 . . . 2 . Ballistic Gun 7 | 1 . . . . 2 1 3 Ballistic Cannon 1 | . . . . . . 1 . Launcher 2 | . . 1 . . . 1 . Special Weapon 2 | . 1 . . . . 1 . Impact Weapon . | . . . . . . . . Slashing Weapon . | . . . . . . . . Piercing Weapon . | . . . . . . . . Special Melee Weapon . | . . . . . . . . Unidentified Prototypes 1 | . . . . . . . 1 Parts Lost 26 | . 1 . . . . 12 13 Power 2 | . . . . . . 1 1 Propulsion 4 | . . . . . . 2 2 Utility 9 | . 1 . . . . 4 4 Weapon 11 | . . . . . . 5 6 Highest Loss Streak 8 | . 1 . . . . 5 8 To Critical Strikes . | . . . . . . . . Average Backups 4 | . 4 4 4 5 3 3 2 Power . | . . . . . . . . Propulsion 1 | . 2 1 1 1 . 1 . Utility . | . . 1 1 1 . . 2 Weapon 1 | . 1 2 2 2 1 1 . Tool/Special . | . . . . . . . . Unused Backups 2 | . 1 . . . . . 1 Power 1 | . 1 . . . . . . Propulsion . | . . . . . . . . Utility 1 | . . . . . . . 1 Weapon . | . . . . . . . . Tool/Special . | . . . . . . . . Average Slot Usage (%) 91 | . 95 100 100 100 98 82 58 Engine 9 | . 14 14 14 14 9 1 . Core 1 | . . . . . . 5 3 Leg 21 | . 28 28 28 28 26 13 . Device 12 | . 2 14 14 14 9 16 17 Processor 10 | . 6 14 14 14 9 11 6 Protection 4 | . 14 . . . 8 3 . Energy Gun 3 | . 12 4 . . . 1 5 Energy Cannon 7 | . . 9 14 14 9 4 7 Ballistic Gun 7 | . 14 2 . . 17 10 4 Launcher 7 | . . 11 14 14 9 4 . Peak Build Rating 39 | 5 7 7 8 8 18 34 39 Average Rating 14 | 3 6 6 7 8 15 26 28 On Entrance 10 | . 5 7 7 8 8 18 34 Naked Turns . | . . . . . . . . Heaviest Build 41 | 7 13 12 12 12 25 41 41 Greatest Support 33 | 20 20 20 20 20 33 33 22 Greatest Overweight (x) 10 | . . . . . . 10 2 Average Overweight (x) . | . . . . . . 1 . Largest Inventory Capacity 5 | 5 5 5 5 5 5 5 5 Average Capacity 5 | 5 5 5 5 5 5 5 5 Most Carried 5 | 3 5 5 5 5 5 5 4 Average Carried 4 | . 4 4 4 5 3 3 2 Final Capacity 5 | 5 5 5 5 5 5 5 5 Final Carried 5 | 3 5 5 5 5 5 2 3 Class Distribution -------------------- 63% | Mutant 15% | Skirmisher 11% | Bomber 9% | Scavenger-Skirmisher Dominant Class ---------------- Mutant | -10/Materials Mutant | -10/Mines Mutant | -10/Exiles Mutant | -9/Mines Skirmisher | -8/Materials Bomber | -7/Factory Mutant | -6/Factory Resources | -11 -10 -10 -10 -9 -8 -7 -6 ----------- Run | Yrd Mat Min Exi Min Mat Fac Fac Matter Collected 1015 | 262 225 117 . . 77 334 . Remotely . | . . . . . . . . Salvage Created 936 | 50 406 34 . . 28 418 . Parts 50 | 3 25 1 . . 1 20 . Haulers Intercepted . | . . . . . . . . Recyclers Shooed 1 | . . 1 . . . . . Parts Field Recycled 29 | . . . . . . 28 1 Retrieved Matter 335 | . . . . . . 329 6 Parts Self-Destructed . | . . . . . . . . Prevented . | . . . . . . . . Kills | -11 -10 -10 -10 -9 -8 -7 -6 ------- Run | Yrd Mat Min Exi Min Mat Fac Fac Combat Hostiles Destroyed 33 | 1 13 8 . . . 11 . Guns 14 | 1 11 . . . . 2 . Cannons 8 | . . 3 . . . 5 . AOE 11 | . 2 5 . . . 4 . Classes Destroyed 7 | 1 2 1 . . . 3 . Worker 1 | . . . . . . 1 . Watcher 3 | . 1 . . . 1 1 . Swarmer 9 | . 6 3 . . . . . Grunt 17 | 1 7 . . . . 9 . Sentry 1 | . . . . . . 1 . Programmer 1 | . . . . . . 1 . Assembled 5 | . . 5 . . . . . Best Kill Streak 8 | 1 3 8 . . 1 3 . Combat Bots Only 8 | 1 3 8 . . . 3 . Max Kills in Single Turn 2 | 1 2 2 . . 1 1 . Gunslinging . | . . . . . . . . Exploded 2 | . 2 2 . . . 1 . Melee . | . . . . . . . . Uniques/NPCs Destroyed . | . . . . . . . . Combat | -11 -10 -10 -10 -9 -8 -7 -6 -------- Run | Yrd Mat Min Exi Min Mat Fac Fac Hostile Shots Fired 312 | 6 55 5 . . . 115 131 Missed 74 | 3 9 . . . . 24 38 Hits 238 | 3 46 5 . . . 91 93 Melee 4 | . . 4 . . . . . Projectile 234 | 3 46 1 . . . 91 93 AOE 1 | . . . . . . . 1 Critical Strikes 12 | . . . . . . 6 6 Part Disruptions 1 | . . . . . . 1 . Damage Taken 3985 | 33 460 112 . . . 1531 1849 Core 1131 | . 74 12 . . . 181 864 Absorbed by Shields . | . . . . . . . . Ignored by Resistances 10 | . . . . . . 10 . Core Remaining (%) 84 | 100 . . . 65 100 74 . Volleys Fired 117 | 4 46 15 . . 1 43 8 Largest 4 | 2 2 2 . . 4 4 4 Hottest 216 | 60 100 90 . . 135 216 216 Shots Fired 272 | 8 85 21 . . 4 135 19 Gun 166 | 8 78 . . . 2 65 13 Cannon 64 | . . 15 . . 1 42 6 Launcher 30 | . . 6 . . 1 23 . Special 12 | . 7 . . . . 5 . Kinetic 133 | 4 39 . . . 2 80 8 Thermal 76 | . 27 15 . . 1 25 8 Explosive 30 | . . 6 . . 1 23 . Electromagnetic 28 | 4 19 . . . . 2 3 Robot Hit Streak 12 | 3 10 10 . . 12 10 4 Robot Miss Streak 5 | 2 4 1 . . . 5 5 Penetration Max . | . . . . . . . . Secondary Targets . | . . . . . . . . Shots Hit Robots 137 | 5 46 15 . . 2 58 11 Core Hits 85 | 2 20 21 . . 2 34 6 Critical Kills 2 | . 1 . . . 1 . . Critical Parts Destroyed 1 | . 1 . . . . . . Critical Strikes 6 | 1 4 . . . 1 . . Burn 2 | . 2 . . . . . . Destroy 3 | . 2 . . . 1 . . Corrupt 1 | 1 . . . . . . . Melee Attacks . | . . . . . . . . Impact . | . . . . . . . . Slashing . | . . . . . . . . Piercing . | . . . . . . . . Sneak Attacks . | . . . . . . . . Combat Hostiles . | . . . . . . . . Follow-up Attacks . | . . . . . . . . Damage Inflicted 3320 | 58 663 614 . . 28 1677 280 Guns 1190 | 58 582 . . . 10 383 157 Cannons 769 | . . 228 . . 18 429 94 Explosions 1260 | . 81 386 . . . 793 . Melee . | . . . . . . . . Ramming 101 | . . . . . . 72 29 Kinetic 980 | 21 307 . . . 10 499 143 Thermal 1008 | . 219 228 . . 18 472 71 Explosive 966 | . . 386 . . . 580 . Electromagnetic 265 | 37 137 . . . . 54 37 Impact . | . . . . . . . . Slashing . | . . . . . . . . Piercing . | . . . . . . . . Highest Corruption 6 | . . . . . . 6 1 Average Corruption 3 | . . . . . . 3 1 Corruption Purged . | . . . . . . . . Corruption Blocked . | . . . . . . . . Effects 26 | . . . . . . 26 . Message Errors 3 | . . . . . . 3 . Matter Fused 5 | . . . . . . 5 . Heat Flow Errors 5 | . . . . . . 5 . Energy Discharges 3 | . . . . . . 3 . Parts Rejected 1 | . . . . . . 1 . Data Loss (minor) 2 | . . . . . . 2 . Data Loss (major) 1 | . . . . . . 1 . Misfires 3 | . . . . . . 3 . Alerts 2 | . . . . . . 2 . Weapon Failures 1 | . . . . . . 1 . Overload Shots . | . . . . . . . . Overflow Damage 119 | . . 13 . . . 106 . Projectiles 13 | . . 13 . . . . . Explosions 106 | . . . . . . 106 . Melee . | . . . . . . . . Knockbacks 8 | . . . . . . 8 . Impact . | . . . . . . . . Kinetic 8 | . . . . . . 8 . Secondary . | . . . . . . . . Self-Inflicted Damage 196 | . 4 . . . . 180 12 Shots 8 | . 1 . . . . 7 . Rammed 11 | . . . . . . . 11 Targets Rammed 36 | . . . . . . 25 11 Kicked 25 | . . . . . . 25 . Crushed . | . . . . . . . . Highest Temperature 230 | 12 216 20 . . 36 230 78 Average Temperature 50 | 10 63 20 . . 19 42 30 Received Heat Transfer 1232 | 18 183 20 . . . 495 516 Siege Activations . | . . . . . . . . Martial Activations . | . . . . . . . . Shielding Activations . | . . . . . . . . Robots Disrupted . | . . . . . . . . Combat Hostiles . | . . . . . . . . Robots Corrupted . | . . . . . . . . Combat Hostiles . | . . . . . . . . Parts Fried . | . . . . . . . . Impact Corruptions . | . . . . . . . . Robots Melted . | . . . . . . . . Combat Hostiles . | . . . . . . . . Parts Melted 1 | . . . . . . 1 . Heat Transferred 1915 | . 655 481 . . 37 631 111 Parts Sabotaged . | . . . . . . . . Parts Stolen . | . . . . . . . . Parts Stripped . | . . . . . . . . Power Chain Reactions 2 | . 2 . . . . . . Alert | -11 -10 -10 -10 -9 -8 -7 -6 ------- Run | Yrd Mat Min Exi Min Mat Fac Fac Maximum Alert Level 1 | . . . . . . 1 . Low Security (%) 88 | 100 100 100 . 100 100 71 100 Level 1 11 | . . . . . . 28 . Level 2 . | . . . . . . . . Level 3 . | . . . . . . . . Level 4 . | . . . . . . . . Level 5 . | . . . . . . . . High Security . | . . . . . . . . Max Security . | . . . . . . . . Peak Influence 249 | 20 104 83 . . 13 249 15 Initial 31 | . 6 31 . . . . 11 Average 49 | 2 31 18 . . 1 102 1 Influence Increases 1148 | 20 355 93 . . 23 642 15 Destroy 0b10 Robot/C 560 | 20 260 60 . . . 220 . Destroy 0b10 Robot/NC 20 | . 5 . . . 5 10 . Destroy Leader 136 | . 62 10 . . 2 62 . Successful Hack 26 | . 16 . . . 10 . . Disable Machine 180 | . . . . . . 180 . Destroy Structure 196 | . 12 23 . . 6 155 . Lose Combat Pursuer 30 | . . . . . . 15 15 Influence Decreases 1148 | 10 285 126 47 . 23 619 38 Entered New Map 112 | . 4 49 47 . . . 12 Time Decay 823 | 10 271 77 . . 23 426 16 Lost Part 133 | . 10 . . . . 113 10 Lost Ally 80 | . . . . . . 80 . Squads Dispatched 14 | . 4 . . . 1 8 1 Investigation 4 | . 2 . . . . 1 1 Extermination 3 | . . . . . . 3 . Reinforcement 7 | . 2 . . . 1 4 . Assault . | . . . . . . . . Garrison . | . . . . . . . . Intercept . | . . . . . . . . Searches Triggered . | . . . . . . . . Construction Impeded 1 | . . . . . . 1 . Haulers Reinforced . | . . . . . . . . Active Scanning Responses . | . . . . . . . . Cargo Convoy Interrupts . | . . . . . . . . Stealth | -11 -10 -10 -10 -9 -8 -7 -6 --------- Run | Yrd Mat Min Exi Min Mat Fac Fac Distress Signals 4 | . 2 . . . 1 1 . Communications Jammed . | . . . . . . . . Distress Signals . | . . . . . . . . Times Spotted 58 | 1 19 10 . . 2 19 7 Peak Tracking Total 13 | 1 4 13 . . 1 4 5 Tactical Retreats 2 | . . . . . . 1 1 Traps | -11 -10 -10 -10 -9 -8 -7 -6 ------- Run | Yrd Mat Min Exi Min Mat Fac Fac Traps Triggered 4 | . 1 . . . . 3 . Indirectly . | . . . . . . . . Trap Hack Attempts . | . . . . . . . . Triggered . | . . . . . . . . Disarmed . | . . . . . . . . Reprogrammed . | . . . . . . . . Reused . | . . . . . . . . Traps Extracted . | . . . . . . . . Installed . | . . . . . . . . Triggered . | . . . . . . . . Machines | -11 -10 -10 -10 -9 -8 -7 -6 ---------- Run | Yrd Mat Min Exi Min Mat Fac Fac Machines Disabled 12 | . . . . . . 12 . Max in Single Turn 4 | . . . . . . 4 . Machines Repaired . | . . . . . . . . Machines Dismantled . | . . . . . . . . Machines Sabotaged . | . . . . . . . . Overloaded Fab Kills . | . . . . . . . . Hacking | -11 -10 -10 -10 -9 -8 -7 -6 --------- Run | Yrd Mat Min Exi Min Mat Fac Fac Machines Accessed 14 | . 1 . 5 . 3 4 1 Terminals 4 | . 1 . . . 2 1 . Fabricators 3 | . . . . . . 2 1 Repair Stations . | . . . . . . . . Recycling Units 1 | . . . . . 1 . . Scanalyzers 1 | . . . . . . 1 . Garrison Access . | . . . . . . . . Total Hacks 71 | . 5 . 50 . 5 8 3 Successful 63 | . 4 . 50 . 4 4 1 Failed 8 | . 1 . . . 1 4 2 Catastrophic . | . . . . . . . . Database Lockouts . | . . . . . . . . Manual 1 | . . . 1 . . . . Terminals 10 | . 5 . . . 4 1 . Fabricators 9 | . . . . . . 6 3 Repair Stations . | . . . . . . . . Recycling Units 1 | . . . . . 1 . . Scanalyzers 1 | . . . . . . 1 . Garrison Access . | . . . . . . . . Terminal Hacks 57 | . 4 . 50 . 3 . . Record 50 | . 1 . 49 . . . . Locate Traps 1 | . 1 . . . . . . Maintenance Status 1 | . . . . . 1 . . Reinforcement Status 1 | . . . . . 1 . . Assault Status 1 | . 1 . . . . . . Registered Components 1 | . . . . . 1 . . Zone Layout 1 | . 1 . . . . . . Proto ID Catalog 1 | . . . 1 . . . . Fabricator Hacks 4 | . . . . . . 3 1 Network Status 3 | . . . . . . 2 1 Build 1 | . . . . . . 1 . Repair Station Hacks . | . . . . . . . . Recycling Unit Hacks 1 | . . . . . 1 . . Retrieve Components 1 | . . . . . 1 . . Scanalyzer 1 | . . . . . . 1 . Insert Component 1 | . . . . . . 1 . Garrison Access Hacks . | . . . . . . . . Unauthorized Hacks . | . . . . . . . . Terminals . | . . . . . . . . Fabricators . | . . . . . . . . Repair Stations . | . . . . . . . . Recycling Units . | . . . . . . . . Scanalyzers . | . . . . . . . . Garrison Access . | . . . . . . . . Data Cores Recovered . | . . . . . . . . Used . | . . . . . . . . Hacking Detections 6 | . 1 . . . 2 2 1 Full Trace Events 3 | . 1 . . . . 1 1 Feedback Events . | . . . . . . . . Feedback Blocked . | . . . . . . . . Robot Schematics Acquired . | . . . . . . . . Robots Built . | . . . . . . . . Authchips . | . . . . . . . . Time . | . . . . . . . . Total Robot Build Rating . | . . . . . . . . Part Schematics Acquired . | . . . . . . . . Parts Built 2 | . . . . . . 2 . Authchips . | . . . . . . . . Time 53 | . . . . . . 53 . Total Part Build Rating 12 | . . . . . . 12 . Parts Repaired . | . . . . . . . . Time . | . . . . . . . . Parts Recycled . | . . . . . . . . Recycled Matter . | . . . . . . . . Retrieved Matter . | . . . . . . . . Retrieved Components 9 | . . . . . 9 . . Parts Scanalyzed . | . . . . . . . . Part Schematics Acquired . | . . . . . . . . Parts Damaged . | . . . . . . . . Bothacking | -11 -10 -10 -10 -9 -8 -7 -6 ------------ Run | Yrd Mat Min Exi Min Mat Fac Fac Used RIF Installer . | . . . . . . . . Robots Hacked . | . . . . . . . . Non-combat . | . . . . . . . . Combat . | . . . . . . . . Robot Hacks Applied . | . . . . . . . . Relay Couplers Released . | . . . . . . . . Fabnet Peak Effective % . | . . . . . . . . Robots Rewired . | . . . . . . . . Allies Hacked . | . . . . . . . . Hacks Repelled . | . . . . . . . . Allies | -11 -10 -10 -10 -9 -8 -7 -6 -------- Run | Yrd Mat Min Exi Min Mat Fac Fac Total Allies 4 | . . . . . . 4 . Largest Group 2 | . . . . . . 2 . Highest-Rated Group 53 | . . . . . . 53 . Highest-Rated Ally 37 | . . . . . . 37 . Total Orders 1 | . . . . . . 1 . AID 1 | . . . . . . 1 . Ally Attacks 14 | . . . . . . 14 . Total Damage 171 | . . . . . . 171 . Kills . | . . . . . . . . Allies Corrupted . | . . . . . . . . Allies Melted . | . . . . . . . . Field Lobotomies 4 | . . . . . . 4 . Intel | -11 -10 -10 -10 -9 -8 -7 -6 ------- Run | Yrd Mat Min Exi Min Mat Fac Fac Active Infowar (turns) . | . . . . . . . . Robot Analysis Total . | . . . . . . . . Derelict Logs Recovered 1 | . . 1 . . . . . Drone Launches . | . . . . . . . . Drone Recoveries . | . . . . . . . . Exploration | -11 -10 -10 -10 -9 -8 -7 -6 ------------- Run | Yrd Mat Min Exi Min Mat Fac Fac Turns Passed 5079 | 103 954 435 1213 267 309 1497 301 Spaces Moved 3240 | 88 634 298 1009 128 218 714 151 Core 86 | 35 . . . . . 17 34 Treads 117 | . . . . . . . 117 Legs 2934 | 53 634 298 1009 128 218 594 . Wheels . | . . . . . . . . Hover 103 | . . . . . . 103 . Flight . | . . . . . . . . Fastest Speed 50 | 50 120 120 120 120 120 120 50 Average Speed 132 | 92 120 120 120 120 120 171 163 Slowest Speed 550 | 120 120 120 120 120 120 550 225 Overloaded Moves . | . . . . . . . . Propulsion Burnouts . | . . . . . . . . Robots Hopped . | . . . . . . . . Potential Cave-ins 6 | . . . . . . . 6 Cave-ins Triggered . | . . . . . . . . Exploration Rate (%) 37 | 6 65 61 94 32 24 16 3 Regions Visited 7 Branch Regions 3 Pre-discovered Areas 1 | . . . 1 . . . . Known Exits Taken 1 | . . . 1 . . . . Unknown Exits Taken 6 | 1 1 1 . 1 1 1 . Scrap Searched 1 | . . 1 . . . . . Spaces Dug 15 | . 7 . . . . 8 . Terrain Destroyed 212 | . 12 32 . . 6 162 . Melee . | . . . . . . . . Projectile 9 | . 7 . . . . 2 . AOE 203 | . 5 32 . . 6 160 . Terrain Rammed . | . . . . . . . . Walls Destroyed . | . . . . . . . . Machines Disabled . | . . . . . . . . Actions | -11 -10 -10 -10 -9 -8 -7 -6 --------- Run | Yrd Mat Min Exi Min Mat Fac Fac Total 3759 | 99 725 355 1011 241 262 876 190 Wait 279 | . 21 34 . 114 33 67 10 Move 3233 | 87 633 297 1008 127 217 713 151 Hop . | . . . . . . . . Pick Up 16 | 3 2 2 1 . 3 4 1 Fast Attach 37 | 5 11 2 . . 3 11 5 Attach 13 | . . . . . 3 8 2 Detach 4 | . 1 . . . . 1 2 Swap 4 | . 3 1 . . . . . Drop 19 | . 8 4 1 . 2 4 . Fire 117 | 4 46 15 . . 1 43 8 Melee . | . . . . . . . . Ram 11 | . . . . . . . 11 Kick 25 | . . . . . . 25 . Crush . | . . . . . . . . Escape Stasis . | . . . . . . . . Rewire 1 | . . . 1 . . . . Trap . | . . . . . . . . Miscellaneous . | . . . . . . . . Route ------- -11/Scrapyard -10/Materials (discovered 2 exits: [*Mat] / [*Min]) -10/Mines -10/Exiles (discovered 2 exits: *Min x2) -9/Mines -8/Materials -7/Factory -6/Factory History --------- Turn | Location | Event 2 | -11/Scrapyard | Met Revision 17 72 | -11/Scrapyard | Discovered new exit (range 8) 104 | -11/Scrapyard | Entered Materials 305 | -10/Materials | Build established: Mutant 642 | -10/Materials | Discovered new exit (range 16) 1022 | -10/Materials | Discovered new exit (range 7) 1058 | -10/Materials | Entered Mines 1113 | -10/Mines | YI-UF0 nonchalantly dropped a Grenade Launcher on the ground 1182 | -10/Mines | Found DCF Scrap (15 items) 1384 | -10/Mines | Assembled infested the area 1435 | -10/Mines | Met 8R-AWN 1437 | -10/Mines | Destroyed 8 combat bots 1487 | -10/Mines | Discovered new exit (range 5) 1493 | -10/Mines | Entered Exiles 1494 | -10/Exiles | Identified exit to Mines 1534 | -10/Exiles | Welcomed by 8R-AWN 1641 | -10/Exiles | Met EX-HEX 1737 | -10/Exiles | Met EX-DEC 1761 | -10/Exiles | Learned location of Zion (-7) 1805 | -10/Exiles | Met EX-BIN 1835 | -10/Exiles | Aligned with FarCom system 1836 | -10/Exiles | Given EX-Vault access code 1908 | -10/Exiles | Opened EX-Vault 1926 | -10/Exiles | Found Prototype Special Weapon 1932 | -10/Exiles | Identified Field Lobotomy Kit 1957 | -10/Exiles | Warned to stay clear of 0b10 Research branches 2055 | -10/Exiles | Visited The Gauntlet 2517 | -10/Exiles | Learned about 8R-AWN's background 2706 | -10/Exiles | Left Exiles lab with Field Lobotomy Kit 2706 | -10/Exiles | Entered Mines 2961 | -9/Mines | Discovered new exit (range 8) 2973 | -9/Mines | Entered Materials 2973 | -8/Materials | Evolved 4 slots: Propulsion x1, Utility x1, Weapon x2 3259 | -8/Materials | Discovered new exit (range 12) 3282 | -8/Materials | Entered Factory 3282 | -7/Factory | Evolved 2 slots: Utility x2 3284 | -7/Factory | Build established: Skirmisher 3809 | -7/Factory | Build established: Bomber 3996 | -7/Factory | Fabricated Imp. Recalibrator (x2) 4123 | -7/Factory | Assimilated P-60 Hacker with FLK Orb 4144 | -7/Factory | Assimilated G-47 Trooper with FLK Orb 4149 | -7/Factory | Lost 5 parts (1n3u1w) 4150 | -7/Factory | Assimilated G-47 Trooper with FLK Orb 4178 | -7/Factory | Assimilated G-47 Trooper with FLK Orb 4190 | -7/Factory | Lost 3 allies 4361 | -7/Factory | Lost 5 parts (1p1n1u2w) 4732 | -7/Factory | Discovered new exit (range 13) 4749 | -7/Factory | Build established: Scavenger-Skirmisher 4779 | -7/Factory | Entered another Factory area 4779 | -6/Factory | Evolved 2 slots: Propulsion x2 4907 | -6/Factory | Spotted B-75 Beast 4973 | -6/Factory | Lost 5 parts (1p1n1u2w) 5069 | -6/Factory | Core integrity fell below 50% 5075 | -6/Factory | Core integrity fell below 20% 5080 | -6/Factory | Destroyed by B-75 Beast with Heavy Plasma Cannon Last Messages --------------- 05053_ Door malfunctions. 05061_ Hpw. Shotgun destroyed. 05061_ Hpw. Shotgun blasted off. 05066_ P-60 Hacker resets B-75 Beast, system corruption cleaned. 05066_ Slammed into B-75 Beast. 05067_ Destabilizing: System interference. 05067_ Hpw. Shotgun temporarily disabled. 05068_ Hpw. Shotgun destroyed. 05068_ Knocked back. 05068_ Chain reaction triggered in Rnf. Deuterium Engine. 05072_ Slammed into B-75 Beast. 05072_ Destabilizing: System interference. 05072_ Imp. Terrain Scan Processor temporarily disabled. 05073_ Slammed into B-75 Beast. 05078_ U-05 Engineer lays Concrete. 05078_ Slammed into B-75 Beast. 05079_ U-05 Engineer lays Concrete. 05079_ Slammed into B-75 Beast. [Achievement: First Step to Greatness] [Achievement: 5k Club] Map ----- +----------------------------------------------------+ | ??# """ """ + #???????????????????????? | | ??# ##### #???????????????????????? | | ??# """ """ #???# #???????????????????????? | | ??# """ """ #???# #???????????????????????? | | ??# """ """ #???# #???????????????????????? | | ??# #???# #??#+#??????????????????? | | ??# ^ ^ #???# #??# #??????????????????? | | ??# ^ #???# #??# #??????????????????? | | ??# #???# #### #??????? ??????????? | | ??##########+"###### #????? ?????????? | | ?????????# # ###?? ????????? | | ?????????# # "" !#"#? ???????? | | ?????????# " "F !!% # ???????? | | ?????????# """ """ / ! # ??????? | | ?????????# """ """ # ! / ??????? | | ?????????# """ """ # % % # ?????? | | ?????????# # # ???????? | | ?????????# ##"Y"### # ???????? | | ?????????############"""###p #????????????????? | | ????????????????????######;g #????????????????? | | ??????????????????????##?#;g ##A######????????? | | ??????????????????????? ##;u ! ???????? | | ???????????????????????# % ???????? | | ???????????????????????#; gm """"""""" ????????? | | ???????????????????????## BB ????????? | | ???????????????????????#;@BB ???????? | | ???????????????????????#;;; ==! ""????????? | | ???????????????????????# ## !! =!! T????????? | | ???????????????????????##?# !/ =! "?????????? | | ??????????????????????????# ?????????? | | ??????????????????????????? ?????????? | | ???????????????????????????########+###??????????? | | ?????????????????????????????????????????????????? | | ?????????????????????????????????????????????????? | | ?????????????????????????????????????????????????? | | ?????????????????????????????????????????????????? | | ?????????????????????????????????????????????????? | | ?????????????????????????????????????????????????? | | ?????????????????????????????????????????????????? | | ?????????????????????????????????????????????????? | | ?????????????????????????????????????????????????? | | ?????????????????????????????????????????????????? | | ?????????????????????????????????????????????????? | | ?????????????????????????????????????????????????? | | ?????????????????????????????????????????????????? | | ?????????????????????????????????????????????????? | | ?????????????????????????????????????????????????? | | ?????????????????????????????????????????????????? | | ?????????????????????????????????????????????????? | | ?????????????????????????????????????????????????? | +----------------------------------------------------+ Best States ------------- Heat Dissipation 65 Energy Generation 16 Energy Capacity 290 Matter Stores 301 Matter Capacity 350 Sight Range 16 Terrain Scan Density 110 Armor Coverage 300 Resistance: EX 25 Evasion (%) 55 Targeting Accuracy 5 Recoil Reduction 1 Energy Filtering 30 Particle Charging 20 Item Schematics ----------------- None Robot Schematics ------------------ None Fabricated ------------ Imp. Recalibrator | x2 | -7/Factory | Preloaded Repaired ---------- Nothing Alien Tech Used ----------------- None Achievements -------------- 5k Club Crack Shot First Step to Greatness I Survived The Infestation Just What I Needed Let's See Who's Tougher Librarian Made in Tau Ceti IV One Hack Too Far Oops Remodeling Risk Taker Storm Trooper Tourist Uninvited Guest Challenges ------------ None Game ------ Seed SmartbombAccelerationAirjet Manual? 0 Play Time 01:11:41 Cumulative 1.1 hours Start 2025.09.01 @ 16:59:49 End 2025.09.07 @ 01:45:42 Sessions 8 Manual Loads 0 Difficulty Rogue Special Mode None Game No. 1 Rogue 1 Adventurer 0 Explorer 0 Win Type - Total 0 Types 0/0/0/0/0/0/0/0/0/0 Lore% 5 Gallery% 3 Achievement% 5 Wizard Run 0 Options --------- Layout 0 ASCII 0 Keyboard 1 Movement Numpad Keybinds 0 Fullscreen 1 Font 18/SmallcapsGlow Map View 76x50 Zoom Use 0% Tactical HUD 1 Map Filters NONE Filters NONE Steam 0 RUN: 56adbe3f-ef06-4b32-b898-6ffd153a52ca